Cogmind - Beta 14 X2 @@@ ROGUE MODE // 2024.08.01 @ 12:34:52 Player: Minty Result: Destroyed by Enhanced Grunt with Neutron Cannon Performance ------------- Evolutions (4) 2000 Regions Visited (11) 2200 Robots Destroyed (89) 445 Value Destroyed (3028) 3028 Prototype IDs (223) 4460 Alien Tech Used (0) 0 Bonus (4281) 4281 TOTAL SCORE: 16414 Bonus ------- High Alert Combat Kills 446 Follower Combat Kills 268 Registered with UFD 300 Met Data Miner 300 Used Data Conduit 3000 Friendly Fire -33 Cogmind --------- Core Integrity 0/850 Matter 300/300 Energy 75/100 System Corruption 0% Temperature Cool (0) Movement Core (50) Location -6/Data Miner Parts ------- > --- POWER (1) -------- (None) > --- PROPULSION (5) --- (None) > --- UTILITY (6) ------ Salvage Targeting Computer Targeting Computer > --- WEAPON (3) ------- (None) > --- INVENTORY (5) ---- Flexi-carbon Leg Compact Battery (83) Improved Trap Extractor (6/6 Dirty Bomb) Companion Sword Fire Trap Peak State ------------ > --- POWER ------------ Fission Core > --- PROPULSION ------- Armored Treads Airjet Improved VTOL Module > --- UTILITY ---------- Advanced Heat Sink Terrain Scan Processor Salvage Targeting Computer Armor Integrity Analyzer Improved Particle Charger Improved Core Shielding > --- WEAPON ----------- Pulse Rifle Thermic Laser Heavy Machine Gun > --- INVENTORY -------- Improved Trap Extractor Companion Sword Vortex Trap Vortex Trap Fire Trap [Rating: 52] Favorites ----------- Power Improved Ion Engine Engine Improved Ion Engine Power Core Fission Core Propulsion Improved VTOL Module Treads Armored Treads Leg Aluminum Leg Wheel Compact Wheel Hover Unit Airjet Flight Unit Improved VTOL Module Utility Hacking Suite Device Improved Particle Charger Storage Small Storage Unit Processor Salvage Targeting Computer Hackware Hacking Suite Protection Propulsion Shielding Weapon Cooled Pulse Rifle Energy Gun Cooled Pulse Rifle Energy Cannon Advanced Beam Cannon Ballistic Gun Heavy Machine Gun Launcher Grenade Launcher Slashing Weapon Companion Sword Build | -11 -10 -10 -9 -8 -8 -8 -8 -6 -6 -6 -6 ------- Run | Yrd Mat Min Mat Mat Sto Rec Scr Fac Low Low Dat Slots Evolved 8 | . . . 2 2 . . . 4 . . . Power . | . . . . . . . . . . . . Propulsion 3 | . . . . . . . . 3 . . . Utility 4 | . . . 2 1 . . . 1 . . . Weapon 1 | . . . . 1 . . . . . . . Parts Attached 100 | . 5 6 32 13 7 1 5 10 6 14 1 Power 10 | . . 1 5 1 1 . . 1 . 1 . Engine 8 | . . 1 5 1 1 . . . . . . Core 2 | . . . . . . . . 1 . 1 . Reactor . | . . . . . . . . . . . . Propulsion 18 | . 4 2 3 3 2 . . 2 . 2 . Treads 1 | . . . . . . . . . . 1 . Leg 3 | . 2 . 1 . . . . . . . . Wheel 9 | . 2 2 2 3 . . . . . . . Hover 1 | . . . . . . . . . . 1 . Flight 4 | . . . . . 2 . . 2 . . . Utility 36 | . 1 1 8 5 2 1 2 3 5 7 1 Device 12 | . . . . 1 1 1 1 1 4 3 . Storage 1 | . . . . . . . . . . 1 . Processor 7 | . 1 . 2 1 . . . 1 1 1 . Hackware 3 | . . . 1 1 . . . 1 . . . Protection 13 | . . 1 5 2 1 . 1 . . 2 1 Artifact . | . . . . . . . . . . . . Weapon 36 | . . 2 16 4 2 . 3 4 1 4 . Energy Gun 21 | . . 2 8 4 2 . 2 1 . 2 . Energy Cannon 2 | . . . 2 . . . . . . . . Ballistic Gun 8 | . . . 5 . . . . 2 . 1 . Ballistic Cannon . | . . . . . . . . . . . . Launcher 1 | . . . 1 . . . . . . . . Special Weapon . | . . . . . . . . . . . . Impact Weapon . | . . . . . . . . . . . . Slashing Weapon 4 | . . . . . . . 1 1 1 1 . Piercing Weapon . | . . . . . . . . . . . . Special Melee Weapon . | . . . . . . . . . . . . Unidentified Prototypes 9 | . . . 3 1 4 . 1 . . . . Corrupted Parts 1 | . . . 1 . . . . . . . . System Corruption 1 | . . . 1 . . . . . . . . Parts Lost 33 | . . . 11 . 2 . . 2 6 5 7 Power 6 | . . . 3 . . . . 1 1 1 . Propulsion 8 | . . . 2 . . . . . 3 1 2 Utility 11 | . . . 2 . 2 . . . 2 2 3 Weapon 8 | . . . 4 . . . . 1 . 1 2 Highest Loss Streak 7 | . . . 7 . 1 . . 1 6 4 7 To Critical Strikes . | . . . . . . . . . . . . Average Slot Usage (%) 84 | . 95 100 90 89 93 63 86 74 44 80 68 Engine 5 | . 14 14 9 9 9 9 9 . . . . Core 1 | . . . . . . . . 4 . 4 . Treads 1 | . . . . . . . . . . 5 5 Leg 1 | . 25 15 . 8 . . . . . . . Wheel 6 | . 2 12 19 2 17 . . . . . . Hover 1 | . . . . . . . . . . 5 5 Flight 5 | . . . . . . 18 18 23 9 3 . Device 5 | . . . . 8 4 . 9 8 1 7 6 Storage 3 | . 14 14 9 . . . . . . 1 5 Processor 9 | . 9 3 3 9 9 9 9 10 17 16 13 Hackware 5 | . . . 7 8 9 9 9 6 6 3 . Protection 13 | . . 10 19 17 16 9 17 6 . 8 11 Energy Gun 15 | . . 19 19 20 27 9 15 7 . 12 11 Ballistic Gun 2 | . 28 8 1 5 . . . 3 . 4 . Naked Turns . | . . . . . . . . . . . . Heaviest Build 35 | 11 11 15 33 29 27 10 20 26 16 35 20 Greatest Support 32 | 20 32 32 32 20 20 10 10 18 18 20 20 Greatest Overweight (x) 3 | . . . 3 2 1 . 1 2 1 1 . Average Overweight (x) . | . . . . 1 . . . . . . . Largest Inventory Capacity 8 | 8 8 8 8 5 5 5 5 5 5 5 5 Average Capacity 5 | 8 8 8 7 5 5 5 5 5 5 5 5 Most Carried 8 | 6 8 8 8 5 5 5 5 5 5 5 5 Average Carried 5 | 6 7 7 7 4 4 4 4 4 4 4 4 Final Capacity 8 | 8 8 8 5 5 5 5 5 5 5 5 5 Final Carried 8 | 6 8 8 3 5 5 5 5 4 5 5 5 Class Distribution -------------------- 48% | Mutant 19% | Derelict-Gunner 12% | Derelict-Mutant 11% | Scavenger-Tank 3% | Scavenger-Sprinter Dominant Class ---------------- Mutant | -10/Materials Derelict-Mutant | -10/Mines Mutant | -9/Materials Scavenger-Tank | -8/Materials Scavenger-Tank | -8/Storage Scavenger-Tank | -8/Recycling Mutant | -8/Scraptown Scavenger-Sprinter | -6/Factory Trapper-Mutant | -6/Lower Caves Derelict-Gunner | -6/Lower Caves Derelict-Mutant | -6/Data Miner Resources | -11 -10 -10 -9 -8 -8 -8 -8 -6 -6 -6 -6 ----------- Run | Yrd Mat Min Mat Mat Sto Rec Scr Fac Low Low Dat Matter Collected 1594 | 200 44 85 408 192 40 30 50 274 55 216 . Remotely . | . . . . . . . . . . . . Salvage Created 3965 | . 44 101 1880 353 323 57 . 469 108 630 . Parts 210 | . 2 3 120 29 10 2 . 21 9 14 . Haulers Intercepted 2 | . 1 . 1 . . . . . . . . Recyclers Shooed 1 | . . . 1 . . . . . . . . Parts Field Recycled . | . . . . . . . . . . . . Retrieved Matter . | . . . . . . . . . . . . Parts Self-Destructed 15 | . . . . . . . . . 5 10 . Prevented . | . . . . . . . . . . . . Kills | -11 -10 -10 -9 -8 -8 -8 -8 -6 -6 -6 -6 ------- Run | Yrd Mat Min Mat Mat Sto Rec Scr Fac Low Low Dat Combat Hostiles Destroyed 68 | . . 2 36 8 5 1 . 8 1 7 . Melee 1 | . . . . . . . . . 1 . . Guns 56 | . . 2 28 8 4 1 . 7 . 6 . AOE 9 | . . . 7 . 1 . . 1 . . . Classes Destroyed 17 | . 1 1 11 . . . . 1 2 1 . Worker 2 | . . . 1 1 . . . . . . . Builder 1 | . . . . . . . . 1 . . . Tunneler 2 | . . . 1 1 . . . . . . . Hauler 2 | . 1 . 1 . . . . . . . . Recycler 2 | . . . 1 . 1 . . . . . . Minesweeper 1 | . . . . . . . . . 1 . . Mechanic 2 | . . . 2 . . . . . . . . Operator 7 | . . . 3 1 . . . 3 . . . Watcher 2 | . . . 2 . . . . . . . . Swarmer 10 | . . . 3 4 . . . 3 . . . Grunt 32 | . . 2 19 2 3 . . 3 . 3 . Brawler 2 | . . . 2 . . . . . . . . Duelist 2 | . . . 1 . . . . . . 1 . Protector 1 | . . . 1 . . . . . . . . Sentry 18 | . . . 10 2 2 1 . 2 . 1 . Hunter 2 | . . . . . . . . . . 2 . Behemoth 1 | . . . . . . . . . 1 . . Best Kill Streak 7 | . 1 2 7 5 3 1 . 3 1 3 . Combat Bots Only 6 | . . 2 6 4 3 1 . 3 1 3 . Max Kills in Single Turn 2 | . 1 1 2 2 1 1 . 1 1 1 . Gunslinging 1 | . . . . 1 . . . . . . . Exploded 2 | . . . 2 . 1 . . 1 . . . Melee 1 | . . . . . . . . . 1 . . Uniques/NPCs Destroyed . | . . . . . . . . . . . . Combat | -11 -10 -10 -9 -8 -8 -8 -8 -6 -6 -6 -6 -------- Run | Yrd Mat Min Mat Mat Sto Rec Scr Fac Low Low Dat Hostile Shots Fired 485 | . 6 7 150 27 29 2 . 111 21 107 25 Missed 166 | . 3 2 41 7 9 1 . 47 5 41 10 Damage Taken 5352 | . 27 78 1675 227 405 17 . 846 442 926 709 Core 1386 | . . 18 374 27 71 17 . 169 198 126 386 Absorbed by Shields 68 | . . . . 49 19 . . . . . . Redirected to Shielding 211 | . . . 49 4 8 . . 18 27 47 58 Regen/Repaired (Parts) 195 | . . . 160 35 . . . . . . . Core Remaining (%) 69 | 100 . 92 6 . . . 79 . . . . Volleys Fired 239 | . 4 7 102 15 20 2 . 54 . 28 7 Largest 3 | . 2 2 2 3 3 1 . 2 . 3 1 Hottest 178 | . 40 100 100 103 103 61 . 60 . 178 85 Shots Fired 452 | . 8 14 189 38 46 2 . 68 . 80 7 Gun 448 | . 8 14 185 38 46 2 . 68 . 80 7 Cannon . | . . . . . . . . . . . . Launcher 4 | . . . 4 . . . . . . . . Special . | . . . . . . . . . . . . Kinetic 99 | . 8 1 22 6 . . . 37 . 25 . Thermal 222 | . . 13 36 32 46 2 . 31 . 55 7 Explosive 4 | . . . 4 . . . . . . . . Electromagnetic 127 | . . . 127 . . . . . . . . Robot Hit Streak 15 | . 7 5 10 15 10 8 . 7 . 8 10 Robot Miss Streak 5 | . 1 2 5 1 4 . . 3 . 3 . Penetration Max 2 | . . . . . . . . 2 . . . Secondary Targets 10 | . . . 6 2 1 . . . . 1 . Max Gunslinging Chain 1 | . . . 1 1 1 . . . . 1 . Shots Hit Robots 327 | . 7 9 147 28 24 2 . 42 9 51 8 Core Hits 168 | . 2 5 91 15 11 1 . 15 4 21 3 Critical Kills 1 | . . . . . . . . 1 . . . Critical Parts Destroyed 5 | . 1 . . . . . . 4 . . . Critical Strikes 14 | . 1 1 . . 2 . . 6 . 3 1 Burn 8 | . . 1 . . 2 . . 1 . 3 1 Destroy 6 | . 1 . . . . . . 5 . . . Melee Attacks 24 | . . . . . . . . . 20 3 1 Impact . | . . . . . . . . . . . . Slashing 24 | . . . . . . . . . 20 3 1 Piercing . | . . . . . . . . . . . . Sneak Attacks 3 | . . . . . . . . . 2 . 1 Combat Hostiles 1 | . . . . . . . . . 1 . . Follow-up Attacks . | . . . . . . . . . . . . Damage Inflicted 7553 | . 76 114 3247 518 524 40 . 1332 410 1110 182 Guns 5943 | . 76 114 2332 515 445 40 . 1332 . 999 90 Cannons . | . . . . . . . . . . . . Explosions 994 | . . . 915 . 79 . . . . . . Melee 610 | . . . . . . . . . 410 108 92 Ramming 6 | . . . . 3 . . . . . 3 . Kinetic 1640 | . 76 . 254 72 . . . 920 . 318 . Thermal 3045 | . . 114 820 443 445 40 . 412 . 681 90 Explosive 485 | . . . 406 . 79 . . . . . . Electromagnetic 1767 | . . . 1767 . . . . . . . . Impact . | . . . . . . . . . . . . Slashing 610 | . . . . . . . . . 410 108 92 Piercing . | . . . . . . . . . . . . Highest Corruption 1 | . . . 1 . 1 1 . . . . . Average Corruption 1 | . . . 1 . 1 1 . . . . . Corruption Purged . | . . . . . . . . . . . . Corruption Blocked . | . . . . . . . . . . . . Effects 11 | . . . 10 . 1 . . . . . . Message Errors 2 | . . . 1 . 1 . . . . . . Matter Fused 4 | . . . 4 . . . . . . . . Heat Flow Errors 1 | . . . 1 . . . . . . . . Energy Discharges 2 | . . . 2 . . . . . . . . Data Loss (major) 1 | . . . 1 . . . . . . . . Misfires 1 | . . . 1 . . . . . . . . Overload Shots 2 | . . . . . . . . 2 . . . Overflow Damage 36 | . . . . . . . . . 36 . . Projectiles . | . . . . . . . . . . . . Explosions . | . . . . . . . . . . . . Melee 36 | . . . . . . . . . 36 . . Knockbacks . | . . . . . . . . . . . . Impact . | . . . . . . . . . . . . Kinetic . | . . . . . . . . . . . . Secondary . | . . . . . . . . . . . . Self-Inflicted Damage 204 | . . . 146 . 58 . . . . . . Shots 6 | . . . 5 . 1 . . . . . . Rammed 1 | . . . . . . . . . . 1 . Targets Rammed 2 | . . . . 1 . . . . . 1 . Kicked 1 | . . . . 1 . . . . . . . Crushed . | . . . . . . . . . . . . Highest Temperature 435 | . . 219 404 136 227 30 . 185 . 435 . Average Temperature 98 | . . 95 90 53 77 17 . 58 . 164 . Received Heat Transfer 1391 | . . 45 648 120 176 . . 219 60 123 . Effects 5 | . . . 1 . . . . . . 4 . Short Circuit 1 | . . . 1 . . . . . . . . Damage (major) 4 | . . . . . . . . . . 4 . Siege Activations . | . . . . . . . . . . . . Robots Corrupted 1 | . . . 1 . . . . . . . . Combat Hostiles 1 | . . . 1 . . . . . . . . Parts Fried 10 | . . . 10 . . . . . . . . Impact Corruptions . | . . . . . . . . . . . . Robots Melted 1 | . . . . . . . . . . 1 . Combat Hostiles 1 | . . . . . . . . . . 1 . Parts Melted 21 | . . 1 3 2 4 . . 5 . 6 . Heat Transferred 6915 | . . 407 1467 888 1073 74 . 803 . 1753 450 Parts Sabotaged . | . . . . . . . . . . . . Parts Stolen . | . . . . . . . . . . . . Parts Stripped . | . . . . . . . . . . . . Power Chain Reactions 7 | . . . 7 . . . . . . . . Alert | -11 -10 -10 -9 -8 -8 -8 -8 -6 -6 -6 -6 ------- Run | Yrd Mat Min Mat Mat Sto Rec Scr Fac Low Low Dat Peak Influence 899 | . 7 133 899 578 303 137 . 437 . . . Initial 379 | . . 2 51 379 178 117 . . . . . Average 409 | . . 41 563 433 242 134 . 181 . . . Maximum Alert Level 3 | . . . 3 2 1 . . 2 . . . Low Security (%) 24 | 100 100 100 7 . 25 100 . 59 . . . Level 1 19 | . . . 2 51 75 . . 38 . . . Level 2 48 | . . . 76 48 . . . 2 . . . Level 3 7 | . . . 13 . . . . . . . . Level 4 . | . . . . . . . . . . . . Level 5 . | . . . . . . . . . . . . High Security . | . . . . . . . . . . . . Max Security . | . . . . . . . . . . . . Squads Dispatched 18 | . 1 . 9 . 4 . . 4 . . . Investigation 9 | . 1 . 3 . 3 . . 2 . . . Extermination . | . . . . . . . . . . . . Reinforcement 6 | . . . 3 . 1 . . 2 . . . Assault 3 | . . . 3 . . . . . . . . Garrison . | . . . . . . . . . . . . Intercept . | . . . . . . . . . . . . Searches Triggered . | . . . . . . . . . . . . Construction Impeded 1 | . . . . . . . . 1 . . . Haulers Reinforced . | . . . . . . . . . . . . Active Scanning Responses . | . . . . . . . . . . . . Cargo Convoy Interrupts . | . . . . . . . . . . . . Stealth | -11 -10 -10 -9 -8 -8 -8 -8 -6 -6 -6 -6 --------- Run | Yrd Mat Min Mat Mat Sto Rec Scr Fac Low Low Dat Distress Signals 7 | . . . 4 1 1 . . 1 . . . Communications Jammed . | . . . . . . . . . . . . Distress Signals . | . . . . . . . . . . . . Times Spotted 110 | . 3 2 62 11 6 1 . 12 1 8 4 Peak Tracking Total 9 | . 3 2 9 4 3 1 . 4 1 3 4 Tactical Retreats 4 | . . . 1 . 1 . . 1 . 1 . Traps | -11 -10 -10 -9 -8 -8 -8 -8 -6 -6 -6 -6 ------- Run | Yrd Mat Min Mat Mat Sto Rec Scr Fac Low Low Dat Traps Triggered 2 | . 1 . . . 1 . . . . . . Indirectly . | . . . . . . . . . . . . Trap Hack Attempts . | . . . . . . . . . . . . Triggered . | . . . . . . . . . . . . Disarmed . | . . . . . . . . . . . . Reprogrammed . | . . . . . . . . . . . . Reused 4 | . . . 2 . . . . 1 . . 1 Traps Extracted . | . . . . . . . . . . . . Installed 9 | . . 1 4 . . . . 1 1 . 2 Triggered 3 | . . . 2 . . . . 1 . . . Most Traps Carried 9 | . . 4 4 . . . 3 3 9 9 9 Objects Rigged 6 | . . . . . 6 . . . . . . Exploded 2 | . . . . . 2 . . . . . . Machines | -11 -10 -10 -9 -8 -8 -8 -8 -6 -6 -6 -6 ---------- Run | Yrd Mat Min Mat Mat Sto Rec Scr Fac Low Low Dat Machines Disabled 8 | . . . 1 . 5 . . 2 . . . Max in Single Turn 2 | . . . 1 . 2 . . 1 . . . Garrison Access 1 | . . . . . 1 . . . . . . Machines Repaired . | . . . . . . . . . . . . Machines Dismantled . | . . . . . . . . . . . . Machines Sabotaged . | . . . . . . . . . . . . Overloaded Fab Kills . | . . . . . . . . . . . . Hacking | -11 -10 -10 -9 -8 -8 -8 -8 -6 -6 -6 -6 --------- Run | Yrd Mat Min Mat Mat Sto Rec Scr Fac Low Low Dat Machines Accessed 27 | . . 1 10 2 5 . 3 2 . . 4 Terminals 15 | . . 1 8 1 3 . . 2 . . . Fabricators . | . . . . . . . . . . . . Repair Stations 3 | . . . 2 1 . . . . . . . Recycling Units 1 | . . . . . 1 . . . . . . Scanalyzers . | . . . . . . . . . . . . Garrison Access 1 | . . . . . 1 . . . . . . Total Hacks 103 | . . 5 37 6 15 . 8 5 . . 27 Successful 67 | . . . 20 5 7 . 8 . . . 27 Failed 36 | . . 5 17 1 8 . . 5 . . . Catastrophic 6 | . . 1 3 . 1 . . 1 . . . Database Lockouts . | . . . . . . . . . . . . Manual 44 | . . 5 22 4 10 . . 3 . . . Terminals 55 | . . 5 28 4 13 . . 5 . . . Fabricators . | . . . . . . . . . . . . Repair Stations 11 | . . . 9 2 . . . . . . . Recycling Units 1 | . . . . . 1 . . . . . . Scanalyzers . | . . . . . . . . . . . . Garrison Access 1 | . . . . . 1 . . . . . . Terminal Hacks 44 | . . . 4 1 4 . 8 . . . 27 Record 17 | . . . . . . . 6 . . . 11 Part Schematic 9 | . . . . . . . . . . . 9 Robot Schematic 4 | . . . . . . . . . . . 4 Prototype ID Bank 5 | . . . 1 . 1 . . . . . 3 Open Door 1 | . . . . . . . 1 . . . . Terminal Index 2 | . . . 1 1 . . . . . . . Alert Level 2 | . . . 1 . 1 . . . . . . Unreport Threat 2 | . . . 1 . 1 . . . . . . Recall Reinforcements 1 | . . . . . 1 . . . . . . Derelict Proto ID Bank 1 | . . . . . . . 1 . . . . Fabricator Hacks . | . . . . . . . . . . . . Repair Station Hacks 10 | . . . 8 2 . . . . . . . Scan Component 5 | . . . 4 1 . . . . . . . Repair 5 | . . . 4 1 . . . . . . . Recycling Unit Hacks 1 | . . . . . 1 . . . . . . Report Inventory 1 | . . . . . 1 . . . . . . Scanalyzer . | . . . . . . . . . . . . Garrison Access Hacks 1 | . . . . . 1 . . . . . . Seal Access 1 | . . . . . 1 . . . . . . Unauthorized Hacks 11 | . . . 8 2 1 . . . . . . Terminals 11 | . . . 8 2 1 . . . . . . Assimilate 1 | . . . 1 . . . . . . . . Botnet 2 | . . . 1 1 . . . . . . . Detonate 1 | . . . . . 1 . . . . . . Skim 6 | . . . 5 1 . . . . . . . Sabotage 1 | . . . 1 . . . . . . . . Fabricators . | . . . . . . . . . . . . Repair Stations . | . . . . . . . . . . . . Recycling Units . | . . . . . . . . . . . . Scanalyzers . | . . . . . . . . . . . . Garrison Access . | . . . . . . . . . . . . Data Cores Recovered 1 | . . . 1 . . . . . . . . Used . | . . . . . . . . . . . . Hacking Detections 18 | . . 1 10 2 3 . . 2 . . . Full Trace Events 8 | . . 1 2 . 3 . . 2 . . . Feedback Events 1 | . . . . . 1 . . . . . . Corruption 1 | . . . . . 1 . . . . . . Feedback Blocked . | . . . . . . . . . . . . Robot Schematics Acquired 4 | . . . . . . . . . . . 4 Robots Built . | . . . . . . . . . . . . Authchips . | . . . . . . . . . . . . Time . | . . . . . . . . . . . . Total Robot Build Rating . | . . . . . . . . . . . . Part Schematics Acquired 9 | . . . . . . . . . . . 9 Parts Built . | . . . . . . . . . . . . Authchips . | . . . . . . . . . . . . Time . | . . . . . . . . . . . . Total Part Build Rating . | . . . . . . . . . . . . Parts Repaired 5 | . . . 4 1 . . . . . . . Time 180 | . . . 154 26 . . . . . . . Parts Recycled . | . . . . . . . . . . . . Recycled Matter . | . . . . . . . . . . . . Retrieved Matter . | . . . . . . . . . . . . Retrieved Components . | . . . . . . . . . . . . Parts Scanalyzed . | . . . . . . . . . . . . Part Schematics Acquired . | . . . . . . . . . . . . Parts Damaged . | . . . . . . . . . . . . Bothacking | -11 -10 -10 -9 -8 -8 -8 -8 -6 -6 -6 -6 ------------ Run | Yrd Mat Min Mat Mat Sto Rec Scr Fac Low Low Dat Used RIF Installer . | . . . . . . . . . . . . Robots Hacked . | . . . . . . . . . . . . Non-combat . | . . . . . . . . . . . . Combat . | . . . . . . . . . . . . Robot Hacks Applied . | . . . . . . . . . . . . Relay Couplers Released . | . . . . . . . . . . . . Fabnet Peak Effective % . | . . . . . . . . . . . . Robots Rewired . | . . . . . . . . . . . . Allies Hacked . | . . . . . . . . . . . . Hacks Repelled . | . . . . . . . . . . . . Allies | -11 -10 -10 -9 -8 -8 -8 -8 -6 -6 -6 -6 -------- Run | Yrd Mat Min Mat Mat Sto Rec Scr Fac Low Low Dat Total Allies 5 | . . 5 . . . . . . . . . Largest Group 5 | . . 5 5 . . . . . . . . Highest-Rated Group 91 | . . 91 91 . . . . . . . . Highest-Rated Ally 31 | . . 31 31 . . . . . . . . Total Orders . | . . . . . . . . . . . . Ally Attacks 97 | . . 12 85 . . . . . . . . Total Damage 1041 | . . 61 980 . . . . . . . . Kills 17 | . . 2 15 . . . . . . . . Allies Corrupted . | . . . . . . . . . . . . Allies Melted . | . . . . . . . . . . . . Intel | -11 -10 -10 -9 -8 -8 -8 -8 -6 -6 -6 -6 ------- Run | Yrd Mat Min Mat Mat Sto Rec Scr Fac Low Low Dat Robot Analysis Total 145 | . . . . . . . . . . . 145 Derelict Logs Recovered 6 | . . 2 . . . . . . 1 3 . Drone Launches . | . . . . . . . . . . . . Drone Recoveries . | . . . . . . . . . . . . Exploration | -11 -10 -10 -9 -8 -8 -8 -8 -6 -6 -6 -6 ------------- Run | Yrd Mat Min Mat Mat Sto Rec Scr Fac Low Low Dat Turns Passed 5540 | 11 106 216 1435 434 236 20 933 259 198 1508 184 Spaces Moved 3791 | 10 73 117 911 151 162 41 1107 229 360 524 106 Core 37 | . . . 22 . . . . . . . 15 Treads 571 | . . . . . . . . . . 480 91 Legs 316 | 10 63 85 46 112 . . . . . . . Wheels 1080 | . 10 32 843 39 156 . . . . . . Hover 10 | . . . . . . . . . . 10 . Flight 1777 | . . . . . 6 41 1107 229 360 34 . Fastest Speed 27 | 120 100 100 50 95 34 34 34 27 27 35 50 Average Speed 109 | 120 117 114 101 217 91 34 82 48 36 223 153 Slowest Speed 260 | 120 120 120 200 260 95 34 104 174 105 250 170 Overloaded Moves . | . . . . . . . . . . . . Propulsion Burnouts . | . . . . . . . . . . . . Robots Hopped 2 | . . . . . . . . 2 . . . Cave-ins Triggered . | . . . . . . . . . . . . Exploration Rate (%) 39 | 3 21 28 77 13 26 7 80 9 55 80 77 Regions Visited 11 Branch Regions 7 Pre-discovered Areas 27 | . . . 3 . . . . . 1 . 23 Known Exits Taken 1 | . . . 1 . . . . . . . . Unknown Exits Taken 10 | 1 1 1 . 1 1 1 1 1 1 1 . Scrap Searched 9 | . . 2 . . . . 3 . 2 2 . Spaces Dug 13 | . . . . . . . . 5 8 . . Terrain Destroyed 121 | . . . 46 . 33 . . 34 8 . . Melee 8 | . . . . . . . . . 8 . . Projectile 34 | . . . . . . . . 34 . . . AOE 79 | . . . 46 . 33 . . . . . . Terrain Rammed . | . . . . . . . . . . . . Walls Destroyed . | . . . . . . . . . . . . Machines Disabled . | . . . . . . . . . . . . Actions | -11 -10 -10 -9 -8 -8 -8 -8 -6 -6 -6 -6 --------- Run | Yrd Mat Min Mat Mat Sto Rec Scr Fac Low Low Dat Total 4755 | 9 83 188 1231 226 214 44 1124 322 400 793 121 Wait 499 | . . 44 160 33 9 . 3 26 5 219 . Move 3776 | 9 72 116 910 150 161 40 1106 224 359 523 106 Hop 2 | . . . . . . . . 2 . . . Pick Up 38 | . 2 5 7 8 6 . 4 . 3 3 . Fast Attach 42 | . 1 1 13 4 1 . 3 6 5 8 . Attach 18 | . . 2 4 3 1 1 2 1 1 3 . Detach 13 | . . 2 1 . 2 1 1 1 2 1 2 Swap 40 | . 4 3 15 6 5 . . 3 . 3 1 Drop 55 | . . 7 15 6 9 . 5 4 6 1 2 Fire 239 | . 4 7 102 15 20 2 . 54 . 28 7 Melee 22 | . . . . . . . . . 18 3 1 Ram . | . . . . . . . . . . . . Kick 1 | . . . . 1 . . . . . . . Crush 1 | . . . . . . . . . . 1 . Escape Stasis . | . . . . . . . . . . . . Rewire . | . . . . . . . . . . . . Trap 9 | . . 1 4 . . . . 1 1 . 2 Miscellaneous . | . . . . . . . . . . . . Route ------- -11/Scrapyard -10/Materials (discovered 2 exits: *Min x2) -10/Mines -9/Materials (discovered 5 exits: *Mat x3 / *Min x2) -8/Materials -8/Storage -8/Recycling -8/Scraptown (discovered 2 exits: *Fac x2) -6/Factory -6/Lower Caves -6/Lower Caves -6/Data Miner (discovered 1 exit: [*Pro]) History --------- Turn | Location | Event 1 | -11/Scrapyard | Discovered new exit (range 2) 12 | -11/Scrapyard | Entered Materials 92 | -10/Materials | Discovered new exit (range 11) 97 | -10/Materials | Discovered new exit (range 9) 118 | -10/Materials | Entered Mines 130 | -10/Mines | Assisted by bots powering up and referring to "LRC-V3" 138 | -10/Mines | Met a Derelict bent on vengeance 138 | -10/Mines | Found DCF Scrap (11 items) 204 | -10/Mines | Learned Materials garrison access intel 226 | -10/Mines | Learned location of 1 exit from Materials 230 | -10/Mines | Found a hidden stash of uninstalled traps 289 | -10/Mines | Discovered new exit (range 5) 334 | -10/Mines | Entered Materials 334 | -9/Materials | Accompanied by 5 allies 334 | -9/Materials | Evolved 2 slots: Utility x2 335 | -9/Materials | Identified exit to Mines 340 | -9/Materials | Led the pair of lost Derelicts to an unsafe place 434 | -9/Materials | Discovered exit to Mines (range 14) 676 | -9/Materials | Build established: Mutant 689 | -9/Materials | Discovered new exit (range 6) 969 | -9/Materials | Discovered new exit (range 11) 1038 | -9/Materials | Repaired Imp. EM Shotgun 1090 | -9/Materials | Repaired Imp. EM Shotgun 1118 | -9/Materials | Repaired Com. Wheel 1134 | -9/Materials | First assault squad dispatched 1193 | -9/Materials | Repaired Propulsion Shielding 1511 | -9/Materials | Identified exit to Materials 1600 | -9/Materials | Core integrity fell below 50% 1611 | -9/Materials | Core integrity fell below 20% 1619 | -9/Materials | Learned location of Zion (-7) 1638 | -9/Materials | Lost 7 parts (1p2n2u2w) 1658 | -9/Materials | Learned Storage emergency access door positions 1688 | -9/Materials | Learned Storage stockpile data 1735 | -9/Materials | Learned location of Mines (-9) 1763 | -9/Materials | Learned Storage emergency access door positions 1769 | -9/Materials | Entered another Materials area 1769 | -8/Materials | Evolved 2 slots: Utility x1, Weapon x1 1770 | -8/Materials | Loaded intel: 1 garrison access location 1878 | -8/Materials | Repaired Propulsion Shielding 2076 | -8/Materials | Build established: Scavenger-Tank 2173 | -8/Materials | Discovered new exit (range 14) 2203 | -8/Materials | Entered Storage 2427 | -8/Storage | Used back door to open Recycling access 2427 | -8/Storage | Discovered new exit (range 3) 2439 | -8/Storage | Entered Recycling 2449 | -8/Recycling | Scanned before Scraplab entrance 2456 | -8/Recycling | Entered Scraplab 2458 | -8/Recycling | Discovered new exit (range 2) 2459 | -8/Recycling | Entered Scraptown 2459 | -8/Scraptown | System corruption cleaned by C-Scrubber 2508 | -8/Scraptown | Visited UFD Registry 2508 | -8/Scraptown | Registered with UFD as "Microform" 2521 | -8/Scraptown | Visited Botcube Research 2532 | -8/Scraptown | Visited Science Testing Area 2537 | -8/Scraptown | Visited Modified Component R&D 2551 | -8/Scraptown | Visited Sword Containment 2566 | -8/Scraptown | Visited Research Penetration Think Tank 2574 | -8/Scraptown | Visited Science Guys 2664 | -8/Scraptown | Visited Scrapoid Research Area 2680 | -8/Scraptown | Visited Abandonware Association 2694 | -8/Scraptown | Learned abandonware demo "REPAIR.EXE" 2694 | -8/Scraptown | Learned abandonware demo "ERRANTS.EXE" 2717 | -8/Scraptown | Build established: Mutant 2788 | -8/Scraptown | Visited Awakened 2803 | -8/Scraptown | Visited Cave Peace 2812 | -8/Scraptown | Visited SPCMW 2839 | -8/Scraptown | Discovered new exit (range 11) 3073 | -8/Scraptown | Visited Red Mages 3096 | -8/Scraptown | Visited IN-MT5's Study 3342 | -8/Scraptown | Found Scrap Suit 3388 | -8/Scraptown | Discovered new exit (range 3) 3392 | -8/Scraptown | Entered Factory 3392 | -6/Factory | Evolved 4 slots: Propulsion x3, Utility x1 3643 | -6/Factory | Discovered new exit (range 8) 3651 | -6/Factory | Entered Lower Caves 3677 | -6/Lower Caves | Spotted B-75 Beast 3700 | -6/Lower Caves | Destroyed B-75 Beast 3714 | -6/Lower Caves | Encountered a Warlord checkpoint 3726 | -6/Lower Caves | Lost 6 parts (1p3n2u) 3847 | -6/Lower Caves | Discovered new exit (range 4) 3849 | -6/Lower Caves | Entered another Lower Caves area 3859 | -6/Lower Caves | Found DCF Scrap (12 items) 3888 | -6/Lower Caves | Attracted the attention of an 0b10 checkpoint 3954 | -6/Lower Caves | Learned 12 Factory zone layouts 3961 | -6/Lower Caves | Learned 8 Factory zone layouts 4158 | -6/Lower Caves | Build established: Derelict-Gunner 4305 | -6/Lower Caves | Encountered a Warlord checkpoint 4738 | -6/Lower Caves | Learned Factory interactive machine intel 4983 | -6/Lower Caves | Core integrity fell below 50% 5052 | -6/Lower Caves | Lost 4 parts (1p2u1w) 5317 | -6/Lower Caves | Build established: Derelict-Mutant 5327 | -6/Lower Caves | Discovered new exit (range 14) 5357 | -6/Lower Caves | Entered Data Miner 5357 | -6/Data Miner | Discovered new exit (range 6) 5390 | -6/Data Miner | Met Data Miner 5422 | -6/Data Miner | Learned location of Section 7 (-2) 5422 | -6/Data Miner | Acquired the access code to Warlord's prototype stash 5446 | -6/Data Miner | Received God Mode back door access code from Data Miner 5513 | -6/Data Miner | Interfaced with the Data Conduit 5535 | -6/Data Miner | Core integrity fell below 20% 5541 | -6/Data Miner | Destroyed by Enhanced Grunt with Neutron Cannon Last Messages --------------- 05510_ Data Miner disappears through a trap door. 05513_ Interfacing with system... Downloaded 145 analysis records. Downloaded 755 prototype IDs. Downloaded central machine database. Downloaded 22 destinations. Downloaded encryption format records. Connection remotely terminated. 05521_ Arm. Treads destroyed. 05521_ Hrd. Light Armor Plating destroyed. 05526_ Airjet destroyed. 05526_ Pulse Rifle destroyed. 05528_ Enhanced Grunt suffers critical hit (Burn). 05529_ Enhanced Grunt overheating. 05530_ Thermic Laser destroyed. 05530_ Enhanced Grunt overheating. Companion Sword: "My slot!" 05537_ Imp. Core Shielding destroyed. 05540_ Enhanced Grunt destroyed. 05540_ Imp. Cryofiber Web destroyed. Map ----- +----------------------------------------------------+ | | | | | | | | | | | | | | | | | | | | | | | | | ????????????????????????????????????????????????? | | ????????????????????????????????????????????????? | | ????????????????????????######??????????????????? | | ?????????????????????### ###????????????????? | | ?????????????????????# #?????####???????? | | ??????################ ;;;;;;###?### #???????? | | ?????"""""""""""""""#;;;;; ; ; ; ### #???????? | | ????""""""""" " "" ; ; ; ; ## < ##???????? | | ????""""""""" g g ######??? | | ????"""""" ! #??? | | ???""""""" %g #??? | | ???"""""" #??? | | ???"""""" ##??? | | ????"""""" @ """""""""""#####???? | | ????"""""" """"###############???????? | | ????"""""" """""###?????????????????????? | | ?????"""" """ "#####???????????????????????? | | ??????######"## "#???????????????????????????? | | ???????????#"### "#???????????????????????????? | | ???????????#"### "#???????????????????????????? | | ???????????#"## "#???????????????????????????? | | ?????????????## "#???????????????????????????? | | ?????????????# "#???????????????????????????? | | ?????????????### "#???????????????????????????? | | ???????????????# "##??????????????????????????? | | ??????????????## ""#??????????????????????????? | | ???????????#?## ""#??????????????????????????? | | ??????????##"#"X ""#??????????????????????????? | | ??????????""""" "####???????????????????????? | | ??????????""""" X"""""???????????????????????? | | ??????????##"#"X "##"#???????????????????????? | | ???????????#?## X""""#???????????????????????? | | ??????????????## "##"#???????????????????????? | | ???????????????#######??????????????????????????? | | ????????????????????????????????????????????????? | | ????????????????????????????????????????????????? | | ????????????????????????????????????????????????? | | ????????????????????????????????????????????????? | +----------------------------------------------------+ Best States ------------- Heat Dissipation 75 Coolant Potential 65 Energy Generation 18 Energy Capacity 310 Matter Stores 300 Matter Capacity 300 Sight Range 18 Terrain Scan Density 85 Base Temperature (-) 150 Armor Coverage 450 Core Shielding 30 Power Shielding 33 Propulsion Shielding 33 Evasion (%) 64 Targeting Accuracy 5 Armor Integrity Analysis 30 Recoil Reduction 1 Particle Charging 20 Salvage Targeting 1 Offensive Hacking 10 Trap Extractor Capacity 6 Item Schematics ----------------- Combat Drone Bay | -6/Data Miner | Free Lgt. Regenerative Plating | -6/Data Miner | Free Cld. Nuclear Pulse Thruster | -6/Data Miner | Free Prc. Matter Filter | -6/Data Miner | Free Tesla Bomb Launcher | -6/Data Miner | Free Myomer Leg | -6/Data Miner | Free Adv. Cryofiber Web | -6/Data Miner | Free Force Lance | -6/Data Miner | Free Adv. Trap Scanner | -6/Data Miner | Free Robot Schematics ------------------ M-22 Extractor | -6/Data Miner | Free G-50 Soldier | -6/Data Miner | Free B-60 Warrior | -6/Data Miner | Free Y-54 Guardian | -6/Data Miner | Free Fabricated ------------ Nothing Alien Tech Used ----------------- None Achievements -------------- None Challenges ------------ None Game ------ Seed UtilityProcessingProtomatter Manual? 0 Play Time 00:39:16 Cumulative 827.2 hours Start 2024.07.31 @ 11:31:44 End 2024.08.01 @ 12:34:52 Sessions 6 Manual Loads 0 Difficulty Rogue Special Mode None Game No. 981 Rogue 702 Adventurer 124 Explorer 155 Win Type - Total 34 Types 27/0/5/1/0/0/0/1/0 Lore% 67 Gallery% 88 Achievement% 78 Wizard Run 0 Options --------- Layout 0 ASCII 0 Keyboard 1 Movement Numpad Keybinds 0 Fullscreen 2 Font 18/SmallcapsGlow Map View 76x50 Zoom Use 0% Tactical HUD 1 Map Filters NONE Filters NONE Steam 1 RUN: 47ad006e-b3aa-4696-b4dd-73a2bcdebf4a